bitfinex/quotes_SOLUSD_20240808
["timestamp","ask_amount","ask_price","bid_price","bid_amount"]
[1723108955942,6.4566,154.88,154.81,6.0099]
[1723108956141,46.58614283,154.87,154.81,6.0099]
[1723108956342,46.58614283,154.87,154.79,15.6213]
[1723108956343,46.58614283,154.87,154.75,6.0911]
[1723108956537,6.4575,154.86,154.75,6.0911]
[1723108956736,46.58614283,154.87,154.75,6.0911]
[1723108957423,6.4574,154.86,154.75,6.0911]
[1723108957626,45.34,154.85,154.75,6.0911]
[1723108957826,46.58614283,154.85,154.75,6.0911]
[1723108958333,53.04404283,154.85,154.75,6.0911]
[1723108958849,45.34,154.85,154.75,6.0911]
[1723108959025,0.34,154.85,154.75,6.0911]
[1723108959635,0.34,154.85,154.76,20.0]
[1723108959944,6.4584,154.84,154.75,6.0911]
[1723108960141,0.34,154.83,154.75,6.0911]
[1723108960538,45.0,154.86,154.75,6.0911]
[1723108960736,6.73020652,154.84,154.75,6.0911]
[1723108961051,13.18850652,154.84,154.75,6.0911]
[1723108961247,0.34,154.83,154.75,6.0911]
[1723108962323,428.54,154.83,154.75,6.0911]
[1723108962526,429.78614283,154.83,154.75,6.0911]
[1723108963045,6.4591,154.82,154.75,6.0911]
[1723108963253,0.34,154.81,154.75,6.0911]
[1723108963430,0.17,154.81,154.75,6.0911]
[1723108963946,434.8287,154.83,154.75,6.0911]
[1723108963947,0.17,154.82,154.75,6.0911]
[1723108964246,1.41614283,154.82,154.75,6.0911]
[1723108964430,0.17,154.81,154.75,6.0911]
[1723108964635,1.41614283,154.81,154.75,6.0911]
[1723108964832,6.6299,154.8,154.75,6.0911]
[1723108965035,0.17,154.79,154.75,6.0911]
[1723108965424,1.41614283,154.79,154.75,6.0911]
[1723108965923,0.17,154.78,154.7,6.3841]
[1723108966120,1.24614283,154.77,154.7,6.3841]
[1723108966353,0.34,154.76,154.7,6.3841]
[1723108966646,1.58614283,154.76,154.7,6.3841]
[1723108966950,0.34,154.76,154.7,6.3841]
[1723108968041,1.24614283,154.82,154.7,6.3841]
[1723108968232,0.34,154.81,154.7,6.3841]
[1723108968455,1.24614283,154.82,154.7,6.3841]
[1723108968456,7.70554283,154.82,154.7,6.3841]
[1723108968634,6.4594,154.82,154.7,6.3841]
[1723108968835,7.70484283,154.83,154.71,45.0]
[1723108969047,6.4591,154.83,154.7,6.3841]
[1723108969246,7.70524283,154.83,154.71,65.0]
[1723108969447,396.38850652,154.84,154.71,65.0]
[1723108969635,389.93020652,154.84,154.72,21.4764]
[1723108969827,389.93020652,154.84,154.73,65.34]
[1723108970334,389.93020652,154.84,154.74,6.2112]
[1723108970541,389.93020652,154.84,154.75,45.0]
[1723108970737,389.93020652,154.84,154.76,20.0]
[1723108971342,389.93020652,154.84,154.75,20.0]
[1723108971740,389.93020652,154.84,154.76,45.0]
[1723108972647,6.73020652,154.84,154.77,21.8516]
[1723108972855,383.2,154.86,154.78,45.0]
[1723108973155,383.2,154.86,154.79,20.0]
[1723108973475,383.2,154.86,154.8,45.0]
[1723108973955,383.2,154.86,154.81,6.4385]
[1723108974740,389.6554,154.91,154.81,6.4385]
[1723108974958,16.0163,154.93,154.81,6.4385]
[1723108974959,16.5474,154.99,154.82,16.651]
[1723108975155,6.73202013,154.9,154.83,65.0]
[1723108975363,35.99,154.97,154.83,20.0]
[1723108975528,1.24614283,154.96,154.83,20.0]
[1723108975734,6.73109851,154.92,154.83,20.0]
[1723108975933,1.24614283,154.95,154.83,20.0]
[1723108976133,6.73108888,154.91,154.83,20.0]
[1723108976447,6.625,154.92,154.83,20.0]
[1723108976650,52.07124887,154.91,154.83,20.0]
[1723108977354,6.73124887,154.91,154.83,20.0]
[1723108979032,7.9773917,154.91,154.83,20.0]
[1723108979254,14.4329917,154.91,154.83,20.0]
[1723108979550,14.4329917,154.91,154.82,16.481]
[1723108979760,6.4562,154.89,154.82,16.481]
[1723108980059,0.17,154.88,154.82,16.481]
[1723108980251,45.17,154.9,154.82,16.481]
[1723108980435,0.17,154.89,154.82,16.481]
[1723108981346,0.17,154.9,154.82,16.481]
[1723108981657,6.73124887,154.91,154.82,16.481]
[1723108982336,6.7329854,154.92,154.83,20.0]
[1723108983667,13.1878854,154.92,154.83,20.0]
[1723108983851,51.7954,154.91,154.83,20.0]
[1723108984048,0.34,154.91,154.83,20.0]
[1723108984437,6.7955,154.91,154.83,20.0]
[1723108984762,6.7955,154.91,154.82,16.481]
[1723108984763,0.34,154.91,154.82,16.481]
[1723108985863,6.7954,154.91,154.82,16.481]
[1723108986444,0.34,154.91,154.82,16.481]
[1723108986868,6.7954,154.91,154.82,16.481]
[1723108987460,6.7329854,154.92,154.82,16.481]
[1723108988175,7.70154283,154.91,154.82,16.481]
[1723108988346,6.4559,154.9,154.82,16.481]
[1723108988550,1.24614283,154.89,154.82,16.481]
[1723108988840,1.24614283,154.89,154.83,6.3577]
[1723108989059,16.5474,154.99,154.84,65.34]
[1723108989271,16.5474,154.99,154.86,16.2007]
[1723108989438,6.73011131,154.98,154.88,6.4937]
[1723108989643,6.73011131,154.98,154.89,20.0]
[1723108989866,16.93454283,155.03,154.9,1.29091283]
[1723108989867,6.4508,155.02,154.9,1.29091283]
[1723108990065,16.93454283,155.03,154.89,20.0]
[1723108990263,6.72960588,155.0,154.89,20.0]
[1723108990567,1.24614283,154.99,154.89,20.0]
[1723108990744,7.97636106,154.99,154.89,20.0]
[1723108990947,1.24614283,154.98,154.88,6.4937]
[1723108991141,6.4541,154.94,154.88,6.4937]
[1723108991353,6.4533,154.96,154.88,6.4937]
[1723108991555,0.34,154.97,154.88,6.4937]
[1723108991759,51.793,154.97,154.88,6.4937]
[1723108992172,6.793,154.97,154.88,6.4937]
[1723108992756,6.4536,154.96,154.88,6.4937]
[1723108992961,6.4537,154.95,154.88,6.4937]
[1723108993470,0.34,154.97,154.88,6.4937]
[1723108993471,6.4548,154.93,154.88,6.4937]
[1723108993964,0.17,154.94,154.88,6.4937]
[1723108994166,0.34,154.94,154.88,6.4937]
[1723108994470,6.4533,154.96,154.88,6.4937]
[1723108994667,1.24614283,154.96,154.88,6.4937]
[1723108994875,0.34,154.95,154.88,6.4937]
[1723108995456,6.4544,154.94,154.88,6.4937]
[1723108996971,6.7938,154.95,154.88,6.4937]
[1723108997175,0.34,154.95,154.88,6.4937]
[1723108997467,6.4535,154.96,154.88,6.4937]
[1723108998369,1.24614283,154.96,154.88,6.4937]
[1723108998577,6.7938,154.95,154.88,6.4937]
[1723108998753,6.4538,154.95,154.88,6.4937]
[1723108999162,6.4542,154.94,154.88,6.4937]
[1723108999451,6.4548,154.93,154.88,6.4937]
[1723109000064,28.06,154.9,154.84,6.0721]
[1723109000454,6.7962,154.89,154.84,6.0721]
[1723109001068,6.4566,154.88,154.84,6.0721]
[1723109001260,34.5166,154.88,154.84,6.0721]
[1723109001650,6.4566,154.88,154.84,6.0721]
[1723109002076,7.07534329,154.89,154.84,6.0721]
[1723109002556,51.4567,154.88,154.84,6.0721]
[1723109002873,7.07534329,154.89,154.84,6.0721]
[1723109003501,13.53154329,154.89,154.84,6.0721]
[1723109003678,6.4568,154.88,154.84,6.0721]
[1723109003855,7.07534329,154.89,154.84,6.0721]
[1723109004059,13.53174329,154.89,154.84,6.0721]
[1723109005074,6.4568,154.88,154.84,6.0721]
[1723109005277,45.0,154.87,154.75,21.6406]
[1723109005480,1.41614283,154.86,154.75,21.6406]
[1723109005660,6.4586,154.84,154.75,21.6406]
[1723109006182,0.34,154.85,154.75,21.6406]
[1723109006481,0.34,154.84,154.75,21.6406]
[1723109006675,45.34,154.84,154.75,21.6406]
[1723109006868,0.34,154.84,154.75,21.6406]
[1723109007260,46.24614283,154.88,154.76,45.0]
[1723109007463,0.34,154.87,154.76,45.0]
[1723109007879,6.7973,154.87,154.76,45.0]
[1723109008058,51.4575,154.86,154.76,45.0]
[1723109008268,0.17,154.85,154.76,45.0]
[1723109009387,0.34,154.85,154.75,21.6406]
[1723109009563,0.34,154.85,154.76,20.0]
[1723109009986,45.34,154.86,154.76,20.0]
[1723109010187,0.17,154.86,154.76,20.0]
[1723109010483,23.15594329,154.89,154.78,6.3821]
[1723109010484,13.19154329,154.89,154.78,6.3821]
[1723109010868,6.4566,154.88,154.78,6.3821]
[1723109012257,13.53154329,154.89,154.78,6.3821]
[1723109012465,13.36154329,154.89,154.79,65.0]
[1723109012780,13.19154329,154.89,154.79,65.0]
[1723109012980,6.6267,154.88,154.79,20.0]
[1723109013167,13.36154329,154.89,154.79,20.0]
[1723109013368,13.36154329,154.89,154.8,45.0]
[1723109013578,13.36154329,154.89,154.81,16.4159]
[1723109013579,6.90534329,154.89,154.81,16.4159]
[1723109013783,6.73534329,154.89,154.81,16.4159]
[1723109014094,398.2684,154.93,154.81,16.4159]
[1723109014095,6.4556,154.91,154.81,16.4159]
[1723109014292,13.18805857,154.9,154.81,16.4159]
[1723109017785,7.70264283,154.89,154.81,16.4159]
[1723109017970,13.18795857,154.9,154.81,16.4159]
[1723109018289,6.73215857,154.9,154.82,71.4881]
[1723109018589,6.73588025,154.92,154.82,71.4881]
[1723109018985,6.73588025,154.92,154.83,1.29138552]
[1723109019175,6.73588025,154.92,154.82,71.4881]
[1723109020075,6.73588025,154.92,154.82,72.7792388]
[1723109020689,6.73588025,154.92,154.82,71.4881]
[1723109020872,6.73588025,154.92,154.83,1.2910194]
[1723109021277,6.73588025,154.92,154.82,71.4881]
[1723109021492,13.19118025,154.92,154.82,71.4881]
[1723109022708,14.43732308,154.92,154.82,71.4881]
[1723109023599,6.73588025,154.92,154.82,71.4881]
[1723109023792,0.34,154.91,154.82,71.4881]
[1723109023992,6.4553,154.91,154.82,71.4881]
[1723109024199,13.19088025,154.92,154.82,71.4881]
[1723109027697,6.4558,154.9,154.82,71.4881]
[1723109027910,6.73588025,154.92,154.82,71.4881]
[1723109028217,13.19088025,154.92,154.82,71.4881]
[1723109028989,13.19088025,154.92,154.83,1.2910154]
[1723109029517,13.19088025,154.92,154.82,71.4881]
[1723109030723,6.73588025,154.92,154.83,1.29106124]
[1723109031023,28.06,154.93,154.83,1.29106124]
[1723109031603,6.73031331,154.94,154.87,6.0498]
[1723109031832,6.4549,154.93,154.87,6.0498]
[1723109032003,34.79019458,154.95,154.87,6.0498]
[1723109032201,6.4541,154.94,154.87,6.0498]
[1723109032404,41.24389458,154.95,154.87,6.0498]
[1723109032718,6.4541,154.94,154.87,6.0498]
[1723109033420,28.06,154.93,154.87,6.0498]
[1723109033722,34.5145,154.93,154.87,6.0498]
[1723109038230,28.06,154.93,154.87,6.0498]
[1723109038408,34.96019458,154.95,154.87,6.0498]
[1723109038727,34.96019458,154.95,154.88,1.29104099]
[1723109039112,34.79019458,154.95,154.88,1.29104099]
[1723109039308,6.73019458,154.95,154.87,6.0498]
[1723109039501,13.18389458,154.95,154.87,6.0498]
[1723109043927,6.73019458,154.95,154.87,6.0498]
[1723109044162,28.06,154.99,154.88,110.54201451]
[1723109044451,6.4528,154.97,154.88,109.2512]
[1723109045023,6.4533,154.96,154.88,81.1912]
[1723109045259,6.4529,154.97,154.88,81.1912]
[1723109046417,6.4524,154.98,154.88,81.1912]
[1723109046634,28.06,154.99,154.88,81.1912]
[1723109047517,6.4528,154.98,154.88,81.1912]
[1723109047744,34.5121,154.99,154.88,81.1912]
[1723109047949,34.5121,154.99,154.89,6.2389]
[1723109048245,7.06709647,155.0,154.9,46.29078827]
[1723109048422,6.72709647,155.0,154.91,21.6733]
[1723109048622,6.72709647,155.0,154.92,29.35067167]
[1723109048833,28.06,155.03,154.93,45.0]
[1723109049018,34.5104,155.03,154.94,21.29046813]
[1723109049218,28.06,155.03,154.94,20.0]
[1723109049526,34.5104,155.03,154.94,20.0]
[1723109050116,28.06,155.03,154.95,6.2224]
[1723109051157,6.72455203,155.04,154.96,16.4414]
[1723109051322,6.72455203,155.04,154.96,17.73137203]
[1723109051527,6.4492,155.06,154.96,17.73137203]
[1723109051743,13.17702313,155.06,154.96,17.73137203]
[1723109052053,6.72782313,155.06,154.97,6.0668]
[1723109052366,6.4487,155.07,154.98,45.34]
[1723109053248,6.4487,155.07,154.99,1.28981765]
[1723109053447,6.4487,155.07,154.98,45.34]
[1723109055557,6.72396114,155.08,154.98,45.34]
[1723109055853,6.4496,155.05,154.97,6.0668]
[1723109056061,6.4491,155.06,154.97,6.0668]
[1723109057254,6.4491,155.06,154.98,45.0]
[1723109057626,34.5087,155.07,154.98,45.0]
[1723109058045,6.4491,155.06,154.98,45.0]
[1723109060041,28.06,155.03,154.97,6.0668]
[1723109060258,6.4519,155.0,154.97,6.0668]
[1723109060464,28.06,155.01,154.97,6.0668]
[1723109060629,28.06,155.03,154.97,6.0668]
[1723109061731,7.69634283,155.04,154.97,6.0668]
[1723109061957,34.5096,155.05,154.97,6.0668]
[1723109062342,28.06,155.05,154.97,6.0668]
[1723109062650,413.77870906,155.07,154.97,6.0668]
[1723109062855,0.17,155.06,154.97,6.0668]
[1723109063028,6.89018654,155.06,154.97,6.0668]
[1723109063229,6.4502,155.04,154.97,6.0668]
[1723109063437,28.06,155.05,154.97,6.0668]
[1723109064244,1.24614283,155.04,154.97,6.0668]
[1723109064451,6.4506,155.03,154.97,6.0668]
[1723109065555,6.45,155.04,154.97,6.0668]
[1723109067663,28.06,155.05,154.97,6.0668]
[1723109068061,29.30614283,155.05,154.97,6.0668]
[1723109068361,0.17,155.04,154.97,6.0668]
[1723109068555,28.06,155.05,154.97,6.0668]
[1723109069557,13.16958654,155.06,154.97,6.0668]
[1723109070067,6.4495,155.05,154.97,6.0668]
[1723109072051,6.72018654,155.06,154.99,28.06]
[1723109072257,6.447,155.11,155.01,6.0008]
[1723109072450,6.447,155.11,155.02,45.46257756]
[1723109072656,6.4475,155.1,155.02,45.0]
[1723109073056,6.4475,155.1,155.03,15.5815]
[1723109075373,6.4471,155.11,155.03,16.82247631]
[1723109076473,6.4476,155.1,155.03,15.5815]
[1723109076669,34.78266847,155.12,155.04,1.28975921]
[1723109076670,41.22926847,155.12,155.04,1.28975921]
[1723109076845,6.72266847,155.12,155.04,51.4143]
[1723109077052,28.06,155.14,155.04,51.4143]
[1723109077269,28.06,155.14,155.05,20.0]
[1723109078680,28.06,155.14,155.04,51.4143]
[1723109078985,27.56,155.14,155.04,51.4143]
[1723109079680,6.447,155.11,155.04,51.4143]
[1723109079892,6.4467,155.12,155.04,51.4143]
[1723109080056,6.4466,155.12,155.04,6.4143]
[1723109080266,34.0059,155.14,155.04,6.4143]
[1723109080567,6.4466,155.13,155.04,6.4143]
[1723109080773,34.0058,155.14,155.04,6.4143]
[1723109081305,34.0058,155.14,155.05,45.0]
[1723109083362,6.4463,155.13,155.05,45.0]
[1723109084267,34.0058,155.14,155.05,45.0]
[1723109085793,19.19,155.11,155.05,64.19]
[1723109086686,19.19,155.12,155.06,19.19]
[1723109087505,19.19,155.12,155.05,64.19]
[1723109088599,19.19,155.12,155.06,19.19]
[1723109090409,19.19,155.13,155.07,19.19]
[1723109090786,19.19,155.14,155.08,19.19]
[1723109091198,19.19,155.13,155.07,25.652]
[1723109092212,19.19,155.13,155.08,22.1092]
[1723109092414,19.19,155.14,155.08,41.2992]
[1723109092719,25.91329376,155.15,155.09,19.19]
[1723109092931,25.91329376,155.15,155.1,1.28929887]
[1723109093296,19.19,155.14,155.08,41.2992]
[1723109094419,19.19,155.19,155.13,19.19]
[1723109094589,25.90536344,155.19,155.13,19.19]
[1723109094791,19.19,155.17,155.12,6.1096]
[1723109095209,6.71536344,155.19,155.12,6.1096]
[1723109095421,19.19,155.17,155.12,6.1096]
[1723109096227,6.71536344,155.19,155.15,19.19]
[1723109096416,20.0366586,155.21,155.15,19.19]
[1723109097093,20.0366586,155.21,155.16,6.1691]
[1723109097292,19.19,155.2,155.16,6.1691]
[1723109097894,10.19,155.2,155.16,6.1691]
[1723109099302,0.8466586,155.21,155.16,6.1691]
[1723109099511,20.0366586,155.21,155.16,6.1691]
[1723109100892,0.8466586,155.21,155.17,45.0]
[1723109101402,20.0366586,155.21,155.17,45.0]
[1723109101602,0.8466586,155.21,155.17,45.0]
[1723109102199,20.0366586,155.21,155.17,45.0]
[1723109105029,20.0366586,155.21,155.16,12.6311]
[1723109105249,20.0366586,155.21,155.16,6.1691]
[1723109105412,19.19,155.19,155.16,6.1691]
[1723109106222,19.19,155.17,155.13,16.5354]
[1723109106531,19.19,155.18,155.13,16.5354]
[1723109106748,7.2895586,155.21,155.13,35.7254]
[1723109106749,19.19,155.19,155.13,35.7254]
[1723109106921,19.19,155.2,155.14,26.93695631]
[1723109107239,19.19,155.2,155.14,25.652]
[1723109107424,19.19,155.2,155.15,46.2887703]
[1723109107629,19.19,155.2,155.15,45.0]
[1723109108609,19.19,155.2,155.15,46.28872048]
[1723109109114,19.19,155.2,155.15,46.28871468]
[1723109109334,0.8466586,155.21,155.16,6.3296]
[1723109109635,0.8466586,155.21,155.17,45.0]
[1723109109806,20.0366586,155.21,155.17,45.0]
[1723109110235,0.8466586,155.21,155.17,45.0]
[1723109110727,0.8466586,155.21,155.18,16.3543]
[1723109111308,0.8466586,155.21,155.19,45.0]
[1723109111633,0.8466586,155.21,155.18,16.3543]
[1723109113621,19.19,155.19,155.16,6.3296]
[1723109113824,19.19,155.18,155.16,6.3296]
[1723109114014,19.19,155.2,155.16,6.3296]
[1723109114212,20.0366586,155.21,155.16,6.3296]
[1723109114420,0.8466586,155.21,155.16,25.5196]
[1723109114619,0.8466586,155.21,155.16,31.9816]
[1723109114928,0.8466586,155.21,155.17,19.19]
[1723109115122,0.8466586,155.21,155.16,25.5196]
[1723109115328,19.19,155.2,155.16,6.3296]
[1723109115511,19.19,155.19,155.16,6.3296]
[1723109117231,19.19,155.2,155.16,6.3296]
[1723109117420,20.0366586,155.21,155.17,45.0]
[1723109118265,19.19,155.2,155.17,45.0]
[1723109118546,0.8466586,155.21,155.17,45.0]
[1723109118726,20.0366586,155.21,155.17,45.0]
[1723109118928,19.19,155.2,155.17,45.0]
[1723109120442,20.0366586,155.21,155.17,45.0]
[1723109122139,19.19,155.2,155.16,6.3296]
[1723109122345,19.19,155.19,155.17,45.0]
[1723109122929,0.8466586,155.21,155.17,45.0]
[1723109123326,0.8466586,155.21,155.18,0.17]
[1723109123646,0.8466586,155.21,155.18,19.53]
[1723109123859,0.8466586,155.21,155.19,45.0]
[1723109124347,0.8466586,155.21,155.2,0.17]
[1723109124559,0.8466586,155.21,155.2,0.34]
[1723109125250,0.8466586,155.21,155.19,45.0]
[1723109125556,0.8466586,155.21,155.16,6.3296]
[1723109125760,0.8466586,155.21,155.17,20.0]
[1723109125956,0.8466586,155.21,155.17,21.28832911]
[1723109126131,0.8466586,155.21,155.17,39.19]
[1723109126332,0.8466586,155.21,155.17,20.0]
[1723109126550,0.8466586,155.21,155.17,21.28836288]
[1723109126827,0.8466586,155.21,155.18,19.19]
[1723109127640,0.8466586,155.21,155.19,45.34]
[1723109127957,0.8466586,155.21,155.19,64.53]
[1723109128126,0.8466586,155.21,155.2,15.3789]
[1723109128330,0.8466586,155.21,155.2,60.3789]
[1723109130266,0.8466586,155.21,155.2,60.7189]
[1723109133879,0.8466586,155.21,155.17,20.0]
[1723109134378,0.8466586,155.21,155.17,21.28849655]
[1723109134589,0.8466586,155.21,155.17,20.0]
[1723109135265,0.8466586,155.21,155.18,45.0]
[1723109137862,0.8466586,155.21,155.19,19.53]
[1723109138063,0.8466586,155.21,155.2,64.19]
[1723109138380,0.8466586,155.21,155.2,84.53]
[1723109138755,0.8466586,155.21,155.2,97.3737]
[1723109139151,6.4381,155.33,155.21,23.1177]
[1723109139493,19.19,155.28,155.22,90.992]
[1723109139997,6.70560763,155.32,155.22,90.992]
[1723109140156,19.19,155.28,155.22,90.992]
[1723109141150,19.19,155.27,155.22,71.802]
[1723109141348,19.19,155.27,155.22,65.34]
[1723109141551,19.19,155.26,155.22,20.0]
[1723109141785,6.70560763,155.32,155.2,6.3817]
[1723109141786,19.19,155.25,155.2,6.3817]
[1723109143664,19.19,155.25,155.21,45.0]
[1723109145173,19.19,155.24,155.2,6.3817]
[1723109145985,19.19,155.24,155.21,46.28767817]
[1723109146310,19.19,155.24,155.2,6.3817]
[1723109148198,19.19,155.23,155.2,6.3817]
[1723109149396,19.19,155.24,155.2,6.3817]
[1723109153704,19.19,155.23,155.18,6.462]
[1723109155669,19.19,155.24,155.19,46.28851274]
[1723109156778,19.19,155.24,155.19,45.0]
[1723109157087,19.19,155.24,155.18,51.462]
[1723109157292,19.19,155.23,155.18,51.462]
[1723109158880,6.7072621,155.28,155.2,19.19]
[1723109159078,19.19,155.26,155.21,65.0]
[1723109159294,19.19,155.25,155.21,65.0]
[1723109160104,19.19,155.24,155.18,19.19]
[1723109160325,19.19,155.23,155.19,65.0]
[1723109160999,19.19,155.24,155.19,65.0]
[1723109161787,19.19,155.25,155.19,65.0]
[1723109161987,19.19,155.25,155.19,71.462]
[1723109162183,6.70580577,155.28,155.19,71.462]
[1723109162379,19.19,155.25,155.19,71.462]
[1723109164091,19.19,155.25,155.2,1.28830664]
[1723109164588,19.19,155.26,155.2,7.75030664]
[1723109164796,19.19,155.26,155.21,45.0]
[1723109167219,19.19,155.25,155.21,45.0]
[1723109167412,19.19,155.24,155.19,26.462]
[1723109167617,19.19,155.24,155.2,45.0]
[1723109172395,19.19,155.21,155.13,15.4023]
[1723109172603,19.19,155.19,155.13,15.4023]
[1723109172809,7.95444055,155.24,155.13,15.4023]
[1723109172810,19.19,155.18,155.13,15.4023]
[1723109173229,19.19,155.18,155.13,21.8643]
[1723109173405,19.19,155.19,155.13,41.0543]
[1723109174319,19.19,155.21,155.15,19.19]
[1723109174511,19.19,155.22,155.16,19.19]
[1723109174814,19.19,155.21,155.14,6.462]
[1723109175002,19.19,155.2,155.15,20.0]
[1723109175225,19.19,155.2,155.16,45.0]
[1723109175408,19.19,155.18,155.16,45.0]
[1723109175745,19.19,155.17,155.12,12.9595]
[1723109176033,19.19,155.17,155.12,6.4975]
[1723109176916,19.19,155.18,155.12,26.97628108]
[1723109177443,19.19,155.15,155.09,19.19]
[1723109177934,19.19,155.15,155.09,25.652]
[1723109178316,19.19,155.11,155.02,6.128]
[1723109178532,19.19,155.12,155.06,19.19]
[1723109179035,19.19,155.12,155.06,25.652]
[1723109179617,19.19,155.12,155.06,19.19]
[1723109179816,15.7153,155.18,155.02,7.41745611]
[1723109180123,15.7153,155.18,155.07,19.19]
[1723109180308,19.19,155.1,155.04,19.19]
[1723109180939,19.19,155.1,155.05,6.462]
[1723109181532,17.52814283,155.17,155.02,6.128]
[1723109181533,19.19,155.09,155.03,19.19]
[1723109181743,19.19,155.09,155.04,45.0]
[1723109181926,19.19,155.1,155.04,70.652]
[1723109183415,19.19,155.1,155.05,6.462]
[1723109183612,16.3787,155.12,155.06,64.19]
[1723109183930,19.19,155.12,155.07,45.0]
[1723109184343,19.19,155.09,155.02,6.128]
[1723109184530,6.71183054,155.13,155.04,19.19]
[1723109184729,19.19,155.11,155.05,40.47947557]
[1723109184933,19.19,155.11,155.05,21.28947557]
[1723109185121,19.19,155.11,155.05,39.19]
[1723109185530,6.71183054,155.13,155.08,19.19]
[1723109185719,6.71183054,155.13,155.11,19.19]
[1723109186044,19.19,155.17,155.1,19.19]
[1723109186243,19.19,155.16,155.11,45.0]
[1723109186954,19.19,155.15,155.1,45.0]
[1723109187328,19.19,155.12,155.06,31.939]
[1723109187548,19.19,155.12,155.07,71.462]
[1723109188020,19.19,155.12,155.07,20.0]
[1723109188224,19.19,155.13,155.07,45.652]
[1723109188539,6.4442,155.18,155.08,19.19]
[1723109188718,19.19,155.14,155.08,19.19]
[1723109189318,19.19,155.14,155.09,45.0]
[1723109190445,19.19,155.13,155.09,45.0]
[1723109190641,19.19,155.13,155.08,45.0]
[1723109190852,19.19,155.13,155.07,45.652]
[1723109190853,19.19,155.13,155.07,20.0]
[1723109191041,19.19,155.13,155.07,45.652]
[1723109191542,6.445,155.16,155.07,46.94108866]
[1723109191751,19.19,155.13,155.07,46.94108866]
[1723109191939,19.19,155.12,155.07,26.462]
[1723109192254,19.19,155.12,155.07,20.0]
[1723109193152,19.19,155.11,155.07,20.0]
[1723109193450,1.24614283,155.18,155.03,19.19]
[1723109193451,19.19,155.09,155.03,19.19]
[1723109193748,19.19,155.11,155.05,19.19]
[1723109193949,19.19,155.11,155.01,6.276]
[1723109194253,19.19,155.11,155.05,25.652]
[1723109194451,19.19,155.12,155.06,19.19]
[1723109194957,19.19,155.15,155.09,19.19]
[1723109195750,19.19,155.14,155.08,19.19]
[1723109196061,16.4265,155.16,155.09,19.19]
[1723109196229,19.19,155.15,155.1,45.0]
[1723109196751,16.4265,155.16,155.1,45.0]
[1723109196752,19.19,155.14,155.1,45.0]
[1723109196928,19.19,155.13,155.09,45.0]
[1723109197129,19.19,155.13,155.08,45.0]
[1723109197332,19.19,155.14,155.09,20.0]
[1723109197531,19.19,155.14,155.08,64.19]
[1723109197754,19.19,155.14,155.09,20.0]
[1723109198348,6.709096,155.18,155.1,19.19]
[1723109198525,19.19,155.18,155.12,25.652]
[1723109198725,19.19,155.18,155.13,45.0]
[1723109199757,15.2592,155.2,155.11,25.652]
[1723109199758,19.19,155.17,155.11,25.652]
[1723109199964,19.19,155.16,155.09,20.0]
[1723109200135,19.19,155.14,155.1,45.0]
[1723109200451,19.19,155.13,155.1,45.0]
[1723109200956,19.19,155.14,155.1,45.0]